[Event "Titled Tuesday Blitz July 18 Late 2023"]
[White "Cordova, Emilio"]
[Black "MFatigue"]
[WhiteFideId "3801497"]
[WhiteElo "2829"]
[BlackElo "2533"]
[Result "1/2-1/2"]
[Round "6"]
[TimeControl "180+2"]
[Date "2023.07.18"]
[WhiteClock "0:00:09"]
[BlackClock "0:00:05"]
[Board "44"]

1. e4 {[%clk 0:02:54]}  e6 {[%clk 0:03:00]} 2. Nc3 {[%clk 0:02:54]}  d5 {[%clk 0:03:00]} 3. Nf3 {[%clk 0:02:54]}  d4 {[%clk 0:03:00]} 4. Ne2 {[%clk 0:02:53]}  c5 {[%clk 0:02:58]} 5. d3 {[%clk 0:02:52]}  Nc6 {[%clk 0:02:58]} 6. h4 {[%clk 0:02:44]}  Nf6 {[%clk 0:02:54]} 7. g3 {[%clk 0:02:40]}  e5 {[%clk 0:02:54]} 8. Bg2 {[%clk 0:02:40]}  Bg4 {[%clk 0:02:54]} 9. Nh2 {[%clk 0:02:40]}  Qd7 {[%clk 0:02:48]} 10. O-O {[%clk 0:02:38]}  Bh3 {[%clk 0:02:46]} 11. f4 {[%clk 0:02:38]}  Bd6 {[%clk 0:02:39]} 12. f5 {[%clk 0:02:33]}  Bxg2 {[%clk 0:02:39]} 13. Kxg2 {[%clk 0:02:34]}  O-O-O {[%clk 0:02:40]} 14. Bg5 {[%clk 0:02:33]}  h6 {[%clk 0:02:39]} 15. Bxf6 {[%clk 0:02:33]}  gxf6 {[%clk 0:02:40]} 16. Nf3 {[%clk 0:02:25]}  h5 {[%clk 0:02:38]} 17. Nd2 {[%clk 0:02:23]}  Rdg8 {[%clk 0:02:37]} 18. a4 {[%clk 0:02:20]}  Bf8 {[%clk 0:02:35]} 19. Nc4 {[%clk 0:02:20]}  Bh6 {[%clk 0:02:34]} 20. c3 {[%clk 0:02:20]}  Rg7 {[%clk 0:02:27]} 21. Rf3 {[%clk 0:02:20]}  Rhg8 {[%clk 0:02:27]} 22. Kf1 {[%clk 0:02:19]}  Rg4 {[%clk 0:02:21]} 23. a5 {[%clk 0:02:19]}  Kb8 {[%clk 0:02:19]} 24. Qb3 {[%clk 0:02:18]}  Qc7 {[%clk 0:02:04]} 25. Qb5 {[%clk 0:02:16]}  Ne7 {[%clk 0:01:56]} 26. a6 {[%clk 0:01:55]}  b6 {[%clk 0:01:56]} 27. Ra3 {[%clk 0:01:49]}  Nc8 {[%clk 0:01:55]} 28. cxd4 {[%clk 0:01:45]}  exd4 {[%clk 0:01:48]} 29. b4 {[%clk 0:01:44]}  Rxg3 {[%clk 0:01:41]} 30. Nxg3 {[%clk 0:01:41]}  Rxg3 {[%clk 0:01:42]} 31. Rf2 {[%clk 0:01:41]}  Be3 {[%clk 0:01:32]} 32. bxc5 {[%clk 0:01:36]}  Bxf2 {[%clk 0:01:18]} 33. cxb6 {[%clk 0:01:35]}  axb6 {[%clk 0:00:30]} 34. a7+ {[%clk 0:01:10]}  Nxa7 {[%clk 0:00:30]} 35. Qe8+ {[%clk 0:01:10]}  Nc8 {[%clk 0:00:24]} 36. Rb3 {[%clk 0:01:03]}  Ka7 {[%clk 0:00:08]} 37. e5 {[%clk 0:01:02]}  Be3 {[%clk 0:00:07]} 38. Ra3+ {[%clk 0:00:45]}  Kb8 {[%clk 0:00:07]} 39. Rb3 {[%clk 0:00:45]}  Ka7 {[%clk 0:00:07]} 40. Qa4+ {[%clk 0:00:39]}  Kb8 {[%clk 0:00:07]} 41. Qe8 {[%clk 0:00:31]}  Qb7 {[%clk 0:00:06]} 42. Rxb6 {[%clk 0:00:30]}  Rg1+ {[%clk 0:00:05]} 43. Ke2 {[%clk 0:00:30]}  Rg2+ {[%clk 0:00:05]} 44. Kd1 {[%clk 0:00:27]}  Rg1+ {[%clk 0:00:05]} 45. Kc2 {[%clk 0:00:25]}  Rg2+ {[%clk 0:00:04]} 46. Kb1 {[%clk 0:00:24]}  Rg1+ {[%clk 0:00:04]} 47. Ka2 {[%clk 0:00:24]}  Rg2+ {[%clk 0:00:04]} 48. Ka3 {[%clk 0:00:25]}  Bc1+ {[%clk 0:00:04]} 49. Ka4 {[%clk 0:00:24]}  Ra2+ {[%clk 0:00:05]} 50. Kb3 {[%clk 0:00:09]}  Rb2+ {[%clk 0:00:05]} 51. Nxb2 {[%clk 0:00:10]}  Qxb6+ {[%clk 0:00:05]} 52. Kc4 {[%clk 0:00:10]}  Bxb2 {[%clk 0:00:04]} 53. e6 {[%clk 0:00:06]}  fxe6 {[%clk 0:00:03]} 54. fxe6 {[%clk 0:00:06]}  Qc7+ {[%clk 0:00:04]} 55. Kb3 {[%clk 0:00:06]}  Qc3+ {[%clk 0:00:04]} 56. Ka2 {[%clk 0:00:06]}  Qa3+ {[%clk 0:00:04]} 57. Kb1 {[%clk 0:00:06]}  Qa1+ {[%clk 0:00:03]} 58. Kc2 {[%clk 0:00:07]}  Qc1+ {[%clk 0:00:04]} 59. Kb3 {[%clk 0:00:07]}  Qc3+ {[%clk 0:00:03]} 60. Ka2 {[%clk 0:00:07]}  Qa3+ {[%clk 0:00:03]} 61. Kb1 {[%clk 0:00:08]}  Qa1+ {[%clk 0:00:04]} 62. Kc2 {[%clk 0:00:08]}  Qc1+ {[%clk 0:00:05]} 63. Kb3 {[%clk 0:00:09]}  Qc3+ {[%clk 0:00:05]} 1/2-1/2


[Site "https://www.chess.com"]

[Event "Titled Tuesday Blitz July 18 Late 2023"]
[White "Leiva, Gianmarco"]
[Black "Poltorak, Sebastian"]
[WhiteFideId "3804399"]
[BlackFideId "1199498"]
[WhiteElo "2725"]
[BlackElo "2530"]
[Result "1-0"]
[Round "6"]
[TimeControl "180+2"]
[Date "2023.07.18"]
[WhiteClock "0:00:04"]
[BlackClock "0:00:00"]
[Board "45"]

1. e4 {[%clk 0:02:59]}  c6 {[%clk 0:02:54]} 2. d4 {[%clk 0:02:58]}  d5 {[%clk 0:02:55]} 3. exd5 {[%clk 0:02:59]}  cxd5 {[%clk 0:02:56]} 4. Bd3 {[%clk 0:03:00]}  Nf6 {[%clk 0:02:56]} 5. c3 {[%clk 0:02:58]}  Nc6 {[%clk 0:02:57]} 6. h3 {[%clk 0:02:58]}  g6 {[%clk 0:02:57]} 7. Nf3 {[%clk 0:02:59]}  Bg7 {[%clk 0:02:53]} 8. O-O {[%clk 0:02:59]}  Bf5 {[%clk 0:02:52]} 9. Be2 {[%clk 0:02:56]}  O-O {[%clk 0:02:52]} 10. Bf4 {[%clk 0:02:55]}  h6 {[%clk 0:02:41]} 11. Nbd2 {[%clk 0:02:47]}  g5 {[%clk 0:02:40]} 12. Bh2 {[%clk 0:02:45]}  Rc8 {[%clk 0:02:39]} 13. Ne5 {[%clk 0:02:41]}  Nxe5 {[%clk 0:02:38]} 14. Bxe5 {[%clk 0:02:42]}  Qb6 {[%clk 0:02:32]} 15. Qb3 {[%clk 0:02:42]}  Rc6 {[%clk 0:02:10]} 16. Rfe1 {[%clk 0:02:39]}  e6 {[%clk 0:02:03]} 17. Bb5 {[%clk 0:02:08]}  Rcc8 {[%clk 0:02:02]} 18. a4 {[%clk 0:02:08]}  Ne4 {[%clk 0:01:39]} 19. Nxe4 {[%clk 0:02:07]}  Bxe5 {[%clk 0:01:39]} 20. Nxg5 {[%clk 0:00:38]}  Bxd4 {[%clk 0:01:38]} 21. cxd4 {[%clk 0:00:39]}  hxg5 {[%clk 0:01:38]} 22. Qe3 {[%clk 0:00:40]}  f6 {[%clk 0:01:20]} 23. Rac1 {[%clk 0:00:40]}  Qd6 {[%clk 0:01:12]} 24. Rc3 {[%clk 0:00:26]}  a6 {[%clk 0:01:00]} 25. Rxc8 {[%clk 0:00:20]}  Rxc8 {[%clk 0:01:00]} 26. Bd3 {[%clk 0:00:20]}  Bxd3 {[%clk 0:00:32]} 27. Qxd3 {[%clk 0:00:21]}  Kg7 {[%clk 0:00:31]} 28. Qe3 {[%clk 0:00:21]}  Kf7 {[%clk 0:00:27]} 29. Qe2 {[%clk 0:00:19]}  Rc7 {[%clk 0:00:14]} 30. Qh5+ {[%clk 0:00:15]}  Kg7 {[%clk 0:00:15]} 31. h4 {[%clk 0:00:14]}  gxh4 {[%clk 0:00:10]} 32. Qxh4 {[%clk 0:00:12]}  Qe7 {[%clk 0:00:05]} 33. Re3 {[%clk 0:00:09]}  Kf7 {[%clk 0:00:02]} 34. Qh5+ {[%clk 0:00:05]}  Kf8 {[%clk 0:00:02]} 35. Qh8+ {[%clk 0:00:03]}  Kf7 {[%clk 0:00:02]} 36. Rg3 {[%clk 0:00:04]}  Rc1+ {[%clk 0:00:01]} 37. Kh2 {[%clk 0:00:04]}  e5 {[%clk 0:00:02]} 38. Rg7+ {[%clk 0:00:04]}  Ke6 {[%clk 0:00:02]} 39. Qg8+ {[%clk 0:00:04]}  Kd6 {[%clk 0:00:01]} 40. Rxe7 {[%clk 0:00:04]}  Kxe7 {[%clk 0:00:00]} 41. dxe5 {[%clk 0:00:04]} 1-0


[Site "https://www.chess.com"]

[Event "Titled Tuesday Blitz July 18 Late 2023"]
[White "Mattheii"]
[Black "Adewumi, Tanitoluwa"]
[BlackFideId "30966396"]
[WhiteElo "2529"]
[BlackElo "2657"]
[Result "1-0"]
[Round "6"]
[TimeControl "180+2"]
[Date "2023.07.18"]
[WhiteClock "0:00:41"]
[BlackClock "0:00:21"]
[Board "47"]

1. e4 {[%clk 0:03:00]}  c5 {[%clk 0:02:59]} 2. Nf3 {[%clk 0:03:00]}  e6 {[%clk 0:02:58]} 3. d4 {[%clk 0:03:01]}  cxd4 {[%clk 0:02:59]} 4. Nxd4 {[%clk 0:03:01]}  a6 {[%clk 0:03:00]} 5. Nc3 {[%clk 0:03:01]}  Nc6 {[%clk 0:02:58]} 6. Bf4 {[%clk 0:02:59]}  Nf6 {[%clk 0:02:51]} 7. e5 {[%clk 0:02:52]}  Ng8 {[%clk 0:02:38]} 8. Be2 {[%clk 0:02:44]}  Bc5 {[%clk 0:02:37]} 9. Nxc6 {[%clk 0:02:32]}  bxc6 {[%clk 0:02:33]} 10. Ne4 {[%clk 0:02:32]}  Qb6 {[%clk 0:02:27]} 11. O-O {[%clk 0:02:28]}  Ne7 {[%clk 0:02:22]} 12. c3 {[%clk 0:02:08]}  Ng6 {[%clk 0:02:05]} 13. Bg3 {[%clk 0:02:03]}  O-O {[%clk 0:02:04]} 14. h4 {[%clk 0:02:00]}  f5 {[%clk 0:01:41]} 15. exf6 {[%clk 0:01:56]}  gxf6 {[%clk 0:01:42]} 16. Nxc5 {[%clk 0:01:49]}  Qxc5 {[%clk 0:01:41]} 17. Bd6 {[%clk 0:01:49]}  Qb6 {[%clk 0:01:30]} 18. h5 {[%clk 0:01:46]}  Ne5 {[%clk 0:01:25]} 19. Bxf8 {[%clk 0:01:45]}  Kxf8 {[%clk 0:01:25]} 20. Qd6+ {[%clk 0:01:43]}  Kf7 {[%clk 0:01:22]} 21. h6 {[%clk 0:01:39]}  Qb8 {[%clk 0:01:09]} 22. Bh5+ {[%clk 0:01:37]}  Ng6 {[%clk 0:01:09]} 23. Bxg6+ {[%clk 0:01:35]}  hxg6 {[%clk 0:01:09]} 24. Qxb8 {[%clk 0:01:22]}  Rxb8 {[%clk 0:01:10]} 25. b4 {[%clk 0:01:21]}  Bb7 {[%clk 0:01:02]} 26. Rfd1 {[%clk 0:01:07]}  d5 {[%clk 0:00:57]} 27. Rd3 {[%clk 0:01:07]}  Rh8 {[%clk 0:00:56]} 28. Rh3 {[%clk 0:01:05]}  e5 {[%clk 0:00:55]} 29. a4 {[%clk 0:01:05]}  Bc8 {[%clk 0:00:56]} 30. Rh2 {[%clk 0:01:03]}  g5 {[%clk 0:00:54]} 31. b5 {[%clk 0:00:55]}  axb5 {[%clk 0:00:50]} 32. axb5 {[%clk 0:00:56]}  cxb5 {[%clk 0:00:50]} 33. Ra8 {[%clk 0:00:52]}  Kg6 {[%clk 0:00:48]} 34. h7 {[%clk 0:00:51]}  Kg7 {[%clk 0:00:46]} 35. Kf1 {[%clk 0:00:45]}  Kg6 {[%clk 0:00:21]} 36. Rxc8 {[%clk 0:00:41]} 1-0


[Site "https://www.chess.com"]

[Event "Titled Tuesday Blitz July 18 Late 2023"]
[White "Estrada Nieto, Julian"]
[Black "Karttunen, Mika"]
[WhiteFideId "5101018"]
[BlackFideId "502081"]
[WhiteElo "2529"]
[BlackElo "2656"]
[Result "1-0"]
[Round "6"]
[TimeControl "180+2"]
[Date "2023.07.18"]
[WhiteClock "0:00:27"]
[BlackClock "0:00:08"]
[Board "48"]

1. e4 {[%clk 0:03:00]}  e6 {[%clk 0:02:59]} 2. d4 {[%clk 0:02:59]}  d5 {[%clk 0:02:59]} 3. Nd2 {[%clk 0:02:59]}  Nc6 {[%clk 0:02:53]} 4. Ngf3 {[%clk 0:02:58]}  Nf6 {[%clk 0:02:53]} 5. e5 {[%clk 0:02:58]}  Nd7 {[%clk 0:02:53]} 6. Be2 {[%clk 0:02:58]}  Na5 {[%clk 0:02:42]} 7. O-O {[%clk 0:02:50]}  c5 {[%clk 0:02:41]} 8. c3 {[%clk 0:02:50]}  Nc6 {[%clk 0:02:41]} 9. Re1 {[%clk 0:02:41]}  a5 {[%clk 0:02:35]} 10. Nf1 {[%clk 0:02:31]}  a4 {[%clk 0:02:28]} 11. a3 {[%clk 0:02:26]}  Qa5 {[%clk 0:02:19]} 12. Ng3 {[%clk 0:02:20]}  b6 {[%clk 0:02:11]} 13. Bd2 {[%clk 0:02:07]}  c4 {[%clk 0:02:00]} 14. Ng5 {[%clk 0:01:56]}  h6 {[%clk 0:01:52]} 15. Nh3 {[%clk 0:01:47]}  g6 {[%clk 0:01:48]} 16. Nf4 {[%clk 0:01:44]}  Ne7 {[%clk 0:01:43]} 17. h4 {[%clk 0:01:44]}  Bb7 {[%clk 0:01:40]} 18. h5 {[%clk 0:01:43]}  g5 {[%clk 0:01:39]} 19. Nh3 {[%clk 0:01:43]}  O-O-O {[%clk 0:01:31]} 20. f4 {[%clk 0:01:40]}  gxf4 {[%clk 0:01:27]} 21. Bxf4 {[%clk 0:01:40]}  Kb8 {[%clk 0:01:25]} 22. Rf1 {[%clk 0:01:40]}  Bc6 {[%clk 0:00:55]} 23. Be3 {[%clk 0:01:39]}  Rh7 {[%clk 0:00:50]} 24. Qc2 {[%clk 0:01:38]}  Rg7 {[%clk 0:00:49]} 25. Rf3 {[%clk 0:01:29]}  Ng8 {[%clk 0:00:49]} 26. Raf1 {[%clk 0:01:21]}  Re8 {[%clk 0:00:44]} 27. Nh1 {[%clk 0:01:14]}  Re7 {[%clk 0:00:44]} 28. Bf2 {[%clk 0:01:13]}  f5 {[%clk 0:00:32]} 29. exf6 {[%clk 0:01:06]}  Ndxf6 {[%clk 0:00:33]} 30. Bh4 {[%clk 0:01:02]}  Ref7 {[%clk 0:00:32]} 31. Bxf6 {[%clk 0:00:52]}  Nxf6 {[%clk 0:00:32]} 32. Rxf6 {[%clk 0:00:50]}  Rxf6 {[%clk 0:00:33]} 33. Rxf6 {[%clk 0:00:50]}  Be7 {[%clk 0:00:33]} 34. Rxe6 {[%clk 0:00:36]}  Bd7 {[%clk 0:00:33]} 35. Rxh6 {[%clk 0:00:36]}  b5 {[%clk 0:00:31]} 36. Rg6 {[%clk 0:00:35]}  Rf7 {[%clk 0:00:31]} 37. Rg8+ {[%clk 0:00:33]}  Kb7 {[%clk 0:00:29]} 38. Qg6 {[%clk 0:00:34]}  Rf6 {[%clk 0:00:22]} 39. Qg3 {[%clk 0:00:33]}  Qa7 {[%clk 0:00:15]} 40. Rg7 {[%clk 0:00:30]}  Re6 {[%clk 0:00:15]} 41. Nf4 {[%clk 0:00:29]}  Qb8 {[%clk 0:00:11]} 42. Nxe6 {[%clk 0:00:26]}  Qxg3 {[%clk 0:00:08]} 43. Nxg3 {[%clk 0:00:27]} 1-0


[Site "https://www.chess.com"]

[Event "Titled Tuesday Blitz July 18 Late 2023"]
[White "Philippe, Guillaume"]
[Black "Lewtak, Damian"]
[WhiteFideId "36048763"]
[BlackFideId "1141724"]
[WhiteElo "2520"]
[BlackElo "2621"]
[Result "1-0"]
[Round "6"]
[TimeControl "180+2"]
[Date "2023.07.18"]
[WhiteClock "0:00:29"]
[BlackClock "0:00:33"]
[Board "52"]

1. e4 {[%clk 0:03:00]}  g6 {[%clk 0:03:00]} 2. d4 {[%clk 0:02:58]}  Bg7 {[%clk 0:03:01]} 3. Nc3 {[%clk 0:02:55]}  d6 {[%clk 0:03:02]} 4. Be3 {[%clk 0:02:53]}  a6 {[%clk 0:03:02]} 5. Qd2 {[%clk 0:02:51]}  b5 {[%clk 0:03:02]} 6. f3 {[%clk 0:02:48]}  Bb7 {[%clk 0:03:03]} 7. O-O-O {[%clk 0:02:46]}  Nd7 {[%clk 0:03:03]} 8. h4 {[%clk 0:02:42]}  h5 {[%clk 0:03:01]} 9. Nh3 {[%clk 0:02:40]}  Nb6 {[%clk 0:02:58]} 10. Ng5 {[%clk 0:02:37]}  Nf6 {[%clk 0:02:51]} 11. Bd3 {[%clk 0:02:34]}  e5 {[%clk 0:02:32]} 12. dxe5 {[%clk 0:02:08]}  dxe5 {[%clk 0:02:33]} 13. Bxb6 {[%clk 0:02:05]}  cxb6 {[%clk 0:02:34]} 14. Nxb5 {[%clk 0:02:01]}  O-O {[%clk 0:02:23]} 15. Nc3 {[%clk 0:01:59]}  b5 {[%clk 0:02:23]} 16. Kb1 {[%clk 0:01:56]}  Bc6 {[%clk 0:02:22]} 17. Qf2 {[%clk 0:01:44]}  Qe7 {[%clk 0:02:13]} 18. Nd5 {[%clk 0:01:42]}  Nxd5 {[%clk 0:02:06]} 19. exd5 {[%clk 0:01:43]}  Bxd5 {[%clk 0:02:07]} 20. Bxg6 {[%clk 0:01:39]}  Rad8 {[%clk 0:01:32]} 21. Bh7+ {[%clk 0:01:27]}  Kh8 {[%clk 0:01:32]} 22. Be4 {[%clk 0:01:28]}  Bc4 {[%clk 0:01:26]} 23. g4 {[%clk 0:01:17]}  Rxd1+ {[%clk 0:01:26]} 24. Rxd1 {[%clk 0:01:13]}  Rd8 {[%clk 0:01:26]} 25. Rxd8+ {[%clk 0:01:08]}  Qxd8 {[%clk 0:01:27]} 26. b3 {[%clk 0:01:08]}  f6 {[%clk 0:01:23]} 27. bxc4 {[%clk 0:01:04]}  fxg5 {[%clk 0:01:22]} 28. cxb5 {[%clk 0:01:04]}  gxh4 {[%clk 0:01:15]} 29. bxa6 {[%clk 0:01:02]}  h3 {[%clk 0:00:59]} 30. Kb2 {[%clk 0:01:02]}  Bf8 {[%clk 0:00:52]} 31. a7 {[%clk 0:00:59]}  Qa5 {[%clk 0:00:47]} 32. a8=Q {[%clk 0:00:56]}  Qb4+ {[%clk 0:00:34]} 33. Ka1 {[%clk 0:00:53]}  h2 {[%clk 0:00:35]} 34. Qxf8+ {[%clk 0:00:29]}  Qxf8 {[%clk 0:00:33]} 35. Qxh2 {[%clk 0:00:29]} 1-0


[Site "https://www.chess.com"]

[Event "Titled Tuesday Blitz July 18 Late 2023"]
[White "Urbina Perez, Juan Antonio"]
[Black "Arabidze, Meri"]
[WhiteFideId "2217368"]
[BlackFideId "13604040"]
[WhiteElo "2515"]
[BlackElo "2615"]
[Result "0-1"]
[Round "6"]
[TimeControl "180+2"]
[Date "2023.07.18"]
[WhiteClock "0:00:00"]
[BlackClock "0:00:05"]
[Board "55"]

1. e4 {[%clk 0:03:00]}  c5 {[%clk 0:02:59]} 2. Nf3 {[%clk 0:03:00]}  e6 {[%clk 0:02:59]} 3. c3 {[%clk 0:03:00]}  Nf6 {[%clk 0:02:57]} 4. e5 {[%clk 0:03:00]}  Nd5 {[%clk 0:02:57]} 5. g3 {[%clk 0:03:01]}  Nc6 {[%clk 0:02:56]} 6. Bg2 {[%clk 0:03:00]}  d6 {[%clk 0:02:56]} 7. exd6 {[%clk 0:03:01]}  Bxd6 {[%clk 0:02:56]} 8. O-O {[%clk 0:03:02]}  O-O {[%clk 0:02:56]} 9. d4 {[%clk 0:03:03]}  Qc7 {[%clk 0:02:32]} 10. Na3 {[%clk 0:02:59]}  a6 {[%clk 0:02:30]} 11. Nc4 {[%clk 0:02:53]}  Be7 {[%clk 0:02:26]} 12. Nce5 {[%clk 0:02:44]}  cxd4 {[%clk 0:02:04]} 13. Nxc6 {[%clk 0:02:42]}  bxc6 {[%clk 0:02:05]} 14. Nxd4 {[%clk 0:02:41]}  Bb7 {[%clk 0:02:02]} 15. Re1 {[%clk 0:02:33]}  c5 {[%clk 0:01:56]} 16. Nb3 {[%clk 0:02:29]}  Rfd8 {[%clk 0:01:51]} 17. Qe2 {[%clk 0:02:26]}  a5 {[%clk 0:01:48]} 18. Be3 {[%clk 0:02:08]}  a4 {[%clk 0:01:44]} 19. Nd2 {[%clk 0:02:00]}  Nxe3 {[%clk 0:01:44]} 20. Qxe3 {[%clk 0:02:00]}  Bxg2 {[%clk 0:01:41]} 21. Kxg2 {[%clk 0:01:59]}  Qb7+ {[%clk 0:01:42]} 22. Qf3 {[%clk 0:01:44]}  Qxb2 {[%clk 0:01:41]} 23. Nc4 {[%clk 0:01:45]}  Qb5 {[%clk 0:01:26]} 24. Ne5 {[%clk 0:01:40]}  Bf6 {[%clk 0:01:26]} 25. Rab1 {[%clk 0:01:38]}  Qe8 {[%clk 0:01:21]} 26. Ng4 {[%clk 0:01:27]}  Be7 {[%clk 0:01:21]} 27. Rb7 {[%clk 0:01:20]}  Rab8 {[%clk 0:01:04]} 28. Reb1 {[%clk 0:01:20]}  Rxb7 {[%clk 0:01:00]} 29. Rxb7 {[%clk 0:01:17]}  f5 {[%clk 0:00:38]} 30. Ne5 {[%clk 0:01:03]}  Bf6 {[%clk 0:00:38]} 31. Nc4 {[%clk 0:00:54]}  h6 {[%clk 0:00:34]} 32. h4 {[%clk 0:00:50]}  Kh7 {[%clk 0:00:31]} 33. Rb6 {[%clk 0:00:44]}  Rd5 {[%clk 0:00:27]} 34. Qe2 {[%clk 0:00:34]}  e5 {[%clk 0:00:19]} 35. Ne3 {[%clk 0:00:32]}  Rd7 {[%clk 0:00:10]} 36. Nxf5 {[%clk 0:00:31]}  Qa8+ {[%clk 0:00:10]} 37. Kh2 {[%clk 0:00:31]}  Qd5 {[%clk 0:00:07]} 38. Qg4 {[%clk 0:00:18]}  Qxa2 {[%clk 0:00:07]} 39. Kg2 {[%clk 0:00:15]}  Qd5+ {[%clk 0:00:07]} 40. Kh2 {[%clk 0:00:15]}  Qd2 {[%clk 0:00:06]} 41. Qf3 {[%clk 0:00:12]}  e4 {[%clk 0:00:05]} 42. Qxe4 {[%clk 0:00:08]}  Qxf2+ {[%clk 0:00:05]} 43. Kh3 {[%clk 0:00:08]}  Qf1+ {[%clk 0:00:05]} 44. Kg4 {[%clk 0:00:00]}  h5+ {[%clk 0:00:05]} 0-1


[Site "https://www.chess.com"]

[Event "Titled Tuesday Blitz July 18 Late 2023"]
[White "Hnydiuk, Aleksander"]
[Black "Karaoglan, Doruk"]
[WhiteFideId "1109057"]
[BlackFideId "6390927"]
[WhiteElo "2514"]
[BlackElo "2614"]
[Result "0-1"]
[Round "6"]
[TimeControl "180+2"]
[Date "2023.07.18"]
[WhiteClock "0:00:47"]
[BlackClock "0:00:17"]
[Board "56"]

1. e4 {[%clk 0:03:00]}  c5 {[%clk 0:03:00]} 2. Nf3 {[%clk 0:03:00]}  d6 {[%clk 0:03:00]} 3. d4 {[%clk 0:03:01]}  cxd4 {[%clk 0:03:01]} 4. Nxd4 {[%clk 0:03:02]}  Nf6 {[%clk 0:03:01]} 5. Nc3 {[%clk 0:03:02]}  g6 {[%clk 0:03:02]} 6. Be3 {[%clk 0:02:58]}  Bg7 {[%clk 0:03:02]} 7. Qd2 {[%clk 0:02:57]}  Ng4 {[%clk 0:02:53]} 8. Bg5 {[%clk 0:02:56]}  h6 {[%clk 0:02:34]} 9. Bh4 {[%clk 0:02:55]}  O-O {[%clk 0:02:32]} 10. h3 {[%clk 0:02:50]}  Nf6 {[%clk 0:02:30]} 11. O-O-O {[%clk 0:02:47]}  Bd7 {[%clk 0:01:48]} 12. f4 {[%clk 0:02:45]}  Nc6 {[%clk 0:01:45]} 13. e5 {[%clk 0:02:33]}  dxe5 {[%clk 0:01:37]} 14. Nxc6 {[%clk 0:02:30]}  Bxc6 {[%clk 0:01:37]} 15. fxe5 {[%clk 0:02:29]}  Nd7 {[%clk 0:00:36]} 16. e6 {[%clk 0:02:23]}  fxe6 {[%clk 0:00:37]} 17. Bc4 {[%clk 0:02:23]}  Ne5 {[%clk 0:00:33]} 18. Bxe6+ {[%clk 0:02:21]}  Kh7 {[%clk 0:00:33]} 19. Qxd8 {[%clk 0:02:15]}  Rfxd8 {[%clk 0:00:33]} 20. Rxd8 {[%clk 0:02:09]}  Rxd8 {[%clk 0:00:33]} 21. Rd1 {[%clk 0:02:10]}  Rxd1+ {[%clk 0:00:32]} 22. Kxd1 {[%clk 0:02:11]}  g5 {[%clk 0:00:30]} 23. Bf2 {[%clk 0:02:07]}  Bxg2 {[%clk 0:00:30]} 24. Bxa7 {[%clk 0:02:03]}  h5 {[%clk 0:00:29]} 25. Bd4 {[%clk 0:01:57]}  Bf3+ {[%clk 0:00:29]} 26. Kd2 {[%clk 0:01:50]}  g4 {[%clk 0:00:23]} 27. hxg4 {[%clk 0:01:50]}  hxg4 {[%clk 0:00:24]} 28. Ke3 {[%clk 0:01:40]}  Bh6+ {[%clk 0:00:23]} 29. Kf2 {[%clk 0:01:39]}  Bf4 {[%clk 0:00:23]} 30. Nd5 {[%clk 0:01:25]}  Bh2 {[%clk 0:00:19]} 31. Nxe7 {[%clk 0:01:02]}  g3+ {[%clk 0:00:18]} 32. Ke1 {[%clk 0:01:02]}  g2 {[%clk 0:00:17]} 33. Bd5 {[%clk 0:00:56]}  Bxd5 {[%clk 0:00:16]} 34. Nxd5 {[%clk 0:00:47]}  Nf3+ {[%clk 0:00:17]} 0-1


[Site "https://www.chess.com"]

[Event "Titled Tuesday Blitz July 18 Late 2023"]
[White "Bochnicka, Vladimir"]
[Black "Vaibhav Jayant Raut"]
[WhiteFideId "14943450"]
[BlackFideId "5089034"]
[WhiteElo "2484"]
[BlackElo "2597"]
[Result "0-1"]
[Round "6"]
[TimeControl "180+2"]
[Date "2023.07.18"]
[WhiteClock "0:00:00"]
[BlackClock "0:00:15"]
[Board "62"]

1. e4 {[%clk 0:03:00]}  c5 {[%clk 0:02:48]} 2. Nf3 {[%clk 0:03:01]}  d6 {[%clk 0:02:47]} 3. d4 {[%clk 0:03:01]}  cxd4 {[%clk 0:02:48]} 4. Nxd4 {[%clk 0:03:01]}  Nf6 {[%clk 0:02:48]} 5. Nc3 {[%clk 0:03:01]}  Nc6 {[%clk 0:02:49]} 6. f3 {[%clk 0:03:00]}  g6 {[%clk 0:02:48]} 7. Be3 {[%clk 0:02:59]}  Bg7 {[%clk 0:02:48]} 8. Qd2 {[%clk 0:02:58]}  Bd7 {[%clk 0:02:48]} 9. O-O-O {[%clk 0:02:58]}  Rc8 {[%clk 0:02:48]} 10. h4 {[%clk 0:02:56]}  h5 {[%clk 0:02:47]} 11. Kb1 {[%clk 0:02:56]}  a6 {[%clk 0:02:47]} 12. f4 {[%clk 0:02:49]}  Ng4 {[%clk 0:02:43]} 13. Nxc6 {[%clk 0:02:43]}  Bxc6 {[%clk 0:02:37]} 14. Bd4 {[%clk 0:02:44]}  e5 {[%clk 0:02:32]} 15. Bg1 {[%clk 0:02:37]}  O-O {[%clk 0:02:28]} 16. f5 {[%clk 0:02:27]}  gxf5 {[%clk 0:02:23]} 17. exf5 {[%clk 0:02:28]}  Qf6 {[%clk 0:01:59]} 18. Qxd6 {[%clk 0:02:09]}  Qxf5 {[%clk 0:01:57]} 19. Bb6 {[%clk 0:01:48]}  e4 {[%clk 0:01:49]} 20. Nd5 {[%clk 0:01:40]}  Bxd5 {[%clk 0:01:42]} 21. Rxd5 {[%clk 0:01:38]}  Qf6 {[%clk 0:01:30]} 22. Qxf6 {[%clk 0:01:38]}  Nxf6 {[%clk 0:01:31]} 23. Rg5 {[%clk 0:01:31]}  Rc6 {[%clk 0:01:17]} 24. Be3 {[%clk 0:01:22]}  Rd8 {[%clk 0:00:55]} 25. Be2 {[%clk 0:01:22]}  Nd5 {[%clk 0:00:53]} 26. Bd4 {[%clk 0:01:19]}  f6 {[%clk 0:00:51]} 27. Rxh5 {[%clk 0:01:15]}  Nf4 {[%clk 0:00:51]} 28. Be3 {[%clk 0:00:47]}  Nxe2 {[%clk 0:00:43]} 29. Re1 {[%clk 0:00:21]}  Ng3 {[%clk 0:00:41]} 30. Ra5 {[%clk 0:00:22]}  Rcd6 {[%clk 0:00:40]} 31. c3 {[%clk 0:00:17]}  Rd1+ {[%clk 0:00:39]} 32. Rxd1 {[%clk 0:00:18]}  Rxd1+ {[%clk 0:00:40]} 33. Kc2 {[%clk 0:00:19]}  Rd3 {[%clk 0:00:38]} 34. Bd4 {[%clk 0:00:17]}  Ne2 {[%clk 0:00:36]} 35. Bb6 {[%clk 0:00:15]}  Rg3 {[%clk 0:00:36]} 36. Rd5 {[%clk 0:00:11]}  Rxg2 {[%clk 0:00:35]} 37. Rd8+ {[%clk 0:00:10]}  Kh7 {[%clk 0:00:36]} 38. Rd7 {[%clk 0:00:10]}  Nf4+ {[%clk 0:00:32]} 39. Kb3 {[%clk 0:00:09]}  Nd3 {[%clk 0:00:32]} 40. Rxb7 {[%clk 0:00:06]}  Rxb2+ {[%clk 0:00:32]} 41. Kc4 {[%clk 0:00:05]}  Ne5+ {[%clk 0:00:21]} 42. Kd5 {[%clk 0:00:05]}  f5 {[%clk 0:00:21]} 43. a4 {[%clk 0:00:04]}  e3 {[%clk 0:00:19]} 44. Rxg7+ {[%clk 0:00:02]}  Kxg7 {[%clk 0:00:19]} 45. Bxe3 {[%clk 0:00:03]}  Ng4 {[%clk 0:00:16]} 46. Bd4+ {[%clk 0:00:03]}  Kg6 {[%clk 0:00:16]} 47. c4 {[%clk 0:00:04]}  Rd2 {[%clk 0:00:15]} 48. c5 {[%clk 0:00:04]}  f4 {[%clk 0:00:16]} 49. c6 {[%clk 0:00:04]}  Nf6+ {[%clk 0:00:17]} 50. Ke5 {[%clk 0:00:04]}  f3 {[%clk 0:00:14]} 51. c7 {[%clk 0:00:04]}  Rc2 {[%clk 0:00:14]} 52. Kd6 {[%clk 0:00:02]}  Ne8+ {[%clk 0:00:14]} 53. Ke7 {[%clk 0:00:02]}  Nxc7 {[%clk 0:00:15]} 54. Kd7 {[%clk 0:00:00]}  Nd5 {[%clk 0:00:15]} 0-1


[Site "https://www.chess.com"]